bitfinex/quotes_ETHUSD_20250731
["timestamp","ask_amount","ask_price","bid_price","bid_amount"]
[1753975931101,0.9335,3796.7,3796.6,4.118]
[1753975931396,0.9335,3796.7,3796.6,4.25]
[1753975931567,0.9335,3796.7,3796.6,4.118]
[1753975933159,3.56736625,3796.7,3796.6,4.118]
[1753975933396,3.56736625,3796.7,3796.5,6.329]
[1753975933397,0.9335,3796.7,3796.5,6.329]
[1753975933699,2.63386625,3796.7,3796.6,4.116]
[1753975934082,3.56736625,3796.7,3796.6,4.116]
[1753975934284,4.20067565,3796.7,3796.6,4.116]
[1753975935183,4.33267565,3796.7,3796.6,4.116]
[1753975935382,1.6988094,3796.7,3796.6,4.116]
[1753975935591,1.0655,3796.7,3796.6,4.116]
[1753975936155,3.69936625,3796.7,3796.6,4.116]
[1753975937467,2.63407438,3796.4,3796.3,4.112]
[1753975937662,3.56447438,3796.4,3796.3,4.112]
[1753975937868,0.9304,3796.4,3796.3,4.112]
[1753975938395,3.56447438,3796.4,3796.3,4.112]
[1753975939314,4.7475161,3796.4,3796.3,4.112]
[1753975940204,0.132,3796.5,3796.3,4.112]
[1753975940375,2.63387321,3796.7,3796.3,4.112]
[1753975940581,0.49810001,3797.9,3796.6,0.132]
[1753975940765,0.49810001,3797.9,3796.7,7.70356571]
[1753975940766,0.24525817,3797.6,3796.7,7.70356571]
[1753975941101,2.63305424,3797.9,3797.6,0.132]
[1753975941299,2.63305424,3797.9,3797.7,4.122]
[1753975941300,0.52659531,3797.8,3797.7,4.122]
[1753975941600,2.63304325,3797.9,3797.7,4.122]
[1753975941762,3.56350337,3797.8,3797.7,4.122]
[1753975941966,3.69550337,3797.8,3797.7,4.122]
[1753975942214,0.55,3797.7,3797.4,4.122]
[1753975942389,0.63010001,3797.9,3797.4,4.122]
[1753975942599,3.26314143,3797.9,3797.4,4.7399]
[1753975942804,3.26314759,3797.9,3797.4,4.7399]
[1753975942968,1.56292762,3797.9,3797.4,4.7399]
[1753975943168,4.19596789,3797.9,3797.4,4.7399]
[1753975943471,1.56292762,3797.9,3797.4,4.7399]
[1753975943782,1e-08,3797.9,3797.8,2.76510337]
[1753975943966,1e-08,3797.9,3797.8,7.83960337]
[1753975944691,1e-08,3797.9,3797.8,4.254]
[1753975945690,1e-08,3797.9,3796.5,0.4859]
[1753975946004,3.56350796,3797.8,3797.1,2.63356535]
[1753975946219,0.9304,3797.8,3797.2,6.8885176]
[1753975946702,2.63320237,3797.7,3797.2,4.255]
[1753975946888,0.4981,3797.6,3797.2,4.255]
[1753975947210,1.0624,3797.5,3797.3,4.122]
[1753975947414,2.63324977,3797.6,3797.4,4.122]
[1753975947632,3.56371138,3797.5,3797.4,4.122]
[1753975947768,2.63338073,3797.4,3796.6,0.4859]
[1753975948107,2.63372588,3797.0,3796.7,4.122]
[1753975948309,0.132,3796.9,3796.7,4.122]
[1753975948610,0.6301,3796.9,3796.7,4.122]
[1753975949085,3.56419688,3796.8,3796.7,4.122]
[1753975949283,0.4981,3796.8,3796.7,4.122]
[1753975949475,2.76572798,3796.9,3796.7,4.122]
[1753975949869,3.19802798,3796.9,3796.7,4.122]
[1753975950131,1e-08,3797.9,3796.7,4.5886]
[1753975950426,0.132,3797.5,3796.9,2.63371087]
[1753975950567,0.132,3797.5,3796.8,0.5986]
[1753975950767,0.132,3797.5,3797.0,2.63365815]
[1753975950968,0.132,3797.5,3796.9,0.4859]
[1753975950969,0.132,3797.5,3797.1,4.6099]
[1753975951204,2.76505326,3797.9,3797.4,0.132]
[1753975951412,2.76505326,3797.9,3797.5,5.0765]
[1753975951413,1e-08,3797.9,3797.5,5.0765]
[1753975951621,1e-08,3797.9,3797.8,2.63310337]
[1753975952166,1e-08,3797.9,3797.8,3.72582988]
[1753975952491,1e-08,3797.9,3797.8,3.71760337]
[1753975952898,1e-08,3797.9,3797.8,3.72582988]
[1753975953266,1e-08,3797.9,3797.8,6.72582988]
[1753975953472,1e-08,3797.9,3797.8,4.60197369]
[1753975954131,1e-08,3797.9,3797.8,11.72797369]
[1753975962938,0.004,3798.3,3798.2,2.63282607]
[1753975963155,0.004,3798.3,3798.2,9.95582607]
[1753975963299,0.004,3798.3,3798.2,10.90832607]
[1753975963498,0.004,3798.3,3798.2,10.59547607]
[1753975963745,0.004,3798.3,3798.2,10.08782607]
[1753975963952,0.5021,3798.3,3798.2,7.08782607]
[1753975964953,0.5021,3798.3,3798.2,0.132]
[1753975964954,0.9344,3798.3,3798.2,0.132]
[1753975965248,0.9344,3798.3,3798.2,4.246]
[1753975965817,0.9344,3798.3,3798.2,4.114]
[1753975966152,1.4844,3798.3,3798.2,4.114]
[1753975966328,2.63296471,3798.0,3797.9,6.99999999]
[1753975966530,0.9328,3798.0,3797.9,11.11499999]
[1753975966930,0.9328,3798.0,3797.9,4.114]
[1753975967824,3.56576471,3798.0,3797.9,4.114]
[1753975968022,0.9328,3798.0,3797.9,4.114]
[1753975968228,3.56576471,3798.0,3797.9,4.114]
[1753975968414,1.4003531,3798.0,3797.9,4.114]
[1753975968615,0.4647,3798.0,3797.9,4.114]
[1753975968827,0.9328,3798.0,3797.9,4.114]
[1753975969022,0.136,3798.3,3797.9,4.114]
[1753975969225,0.004,3798.3,3797.9,4.114]
[1753975969527,0.004,3798.3,3798.1,0.132]
[1753975969528,0.4687,3798.3,3798.1,0.132]
[1753975969760,0.4687,3798.3,3798.2,4.112]
[1753975969980,0.004,3798.3,3798.2,6.87682607]
[1753975970128,0.004,3798.3,3798.2,4.244]
[1753975970456,0.004,3798.3,3798.2,6.87682607]
[1753975970658,0.004,3798.3,3798.2,4.244]
[1753975971944,0.004,3798.3,3797.3,0.4865]
[1753975971945,0.9368,3798.3,3797.3,0.4865]
[1753975972146,0.9368,3798.3,3798.0,0.132]
[1753975972354,0.004,3798.3,3798.2,2.76482607]
[1753975972557,0.004,3798.3,3798.2,3.20332607]
[1753975972875,0.004,3798.3,3798.2,6.69804566]
[1753975973186,0.004,3798.3,3798.2,7.51849571]
[1753975976719,1e-08,3798.3,3798.2,7.51849571]
[1753975978858,0.12059084,3798.5,3798.2,7.51849571]
[1753975978859,1e-08,3798.5,3798.4,5.63268744]
[1753975979057,1e-08,3798.5,3798.4,9.83768744]
[1753975979217,1e-08,3798.5,3798.4,11.32603812]
[1753975979912,1e-08,3798.5,3798.4,11.45803812]
[1753975980239,1e-08,3798.5,3798.4,10.53303812]
[1753975981235,1e-08,3798.5,3798.4,11.01953812]
[1753975981433,1e-08,3798.5,3798.4,11.45803812]
[1753975981749,1e-08,3798.5,3798.4,11.01953812]
[1753975982683,1e-08,3798.5,3798.4,10.53303812]
[1753975982843,1e-08,3798.5,3798.4,2.76468744]
[1753975983045,0.93280001,3798.5,3798.4,6.87668744]
[1753975983524,1e-08,3798.5,3798.4,6.87668744]
[1753975984091,1e-08,3798.5,3798.4,4.251]
[1753975984373,1e-08,3798.5,3798.4,6.88368744]
[1753975984588,1e-08,3798.5,3798.4,8.32265487]
[1753975984718,1e-08,3798.5,3798.4,8.76115487]
[1753975985379,0.04,3798.9,3798.8,2.63241023]
[1753975985670,0.04,3798.9,3798.8,6.74341023]
[1753975985958,0.5047,3798.9,3798.8,6.87541023]
[1753975986124,0.04,3798.9,3798.8,6.87541023]
[1753975986324,0.04,3798.9,3798.8,7.31496312]
[1753975986520,0.04,3798.9,3798.8,7.80146312]
[1753975987170,0.04,3798.9,3798.8,7.31496312]
[1753975987342,0.04,3798.9,3798.8,7.80146312]
[1753975988430,0.04,3798.9,3798.8,10.80146312]
[1753975989861,0.04,3798.9,3798.8,10.31496312]
[1753975990883,0.9728,3798.9,3798.8,10.31496312]
[1753975991179,0.5047,3798.9,3798.8,9.87541023]
[1753975991361,0.04,3798.9,3798.8,9.87541023]
[1753975991541,0.9728,3798.9,3798.8,6.87541023]
[1753975991931,0.04,3798.9,3798.8,7.36191023]
[1753975992479,0.04,3798.9,3798.8,7.80041023]
[1753975993188,0.04,3798.9,3798.8,10.80041023]
[1753975993676,0.04,3798.9,3798.8,9.86941023]
[1753975994502,0.04,3798.9,3798.8,10.35591023]
[1753975995005,0.04,3798.9,3798.8,10.79441023]
[1753975995211,0.04,3798.9,3798.8,10.35591023]
[1753975995497,0.04,3798.9,3798.8,9.86941023]
[1753975995697,0.5047,3798.9,3798.8,9.86941023]
[1753975995861,0.9728,3798.9,3798.8,9.86941023]
[1753975996764,0.9728,3798.9,3798.8,6.86941023]
[1753975998670,0.9728,3798.9,3798.8,4.237]
[1753975998970,0.04,3798.9,3798.8,4.237]
[1753975999185,0.04,3798.9,3798.8,6.86941023]
[1753975999924,0.04,3798.9,3798.8,6.73741023]
[1753976000068,0.04,3798.9,3798.8,7.35281023]
[1753976000515,0.04,3798.9,3798.8,7.81901023]
[1753976000715,0.04,3798.9,3798.8,8.86416491]
[1753976001420,0.04,3798.9,3798.8,11.39796491]
[1753976001563,0.04,3798.9,3798.8,11.86416491]
[1753976002870,0.04,3799.9,3799.8,2.63171745]
[1753976003076,0.04,3799.9,3799.8,6.72871745]
[1753976003285,0.957,3799.9,3799.8,6.72871745]
[1753976003580,1.20365908,3799.9,3799.8,6.72871745]
[1753976003994,1.20365908,3799.9,3799.8,6.85991745]
[1753976004180,0.957,3799.9,3799.8,6.85991745]
[1753976004892,0.957,3799.9,3799.8,4.2282]
[1753976005691,0.957,3799.9,3799.8,4.097]
[1753976006606,0.957,3799.9,3799.7,4.2262]
[1753976006808,0.04,3799.9,3799.7,4.2262]
[1753976007023,0.917,3799.8,3799.7,4.2262]
[1753976007608,0.917,3799.8,3799.7,4.095]
[1753976007989,0.917,3799.8,3799.6,4.093]
[1753976008186,0.04,3799.9,3799.6,4.093]
[1753976008494,0.917,3799.7,3799.6,4.093]
[1753976010291,0.04,3799.9,3799.7,2.63173585]
[1753976010490,0.5089,3799.9,3799.8,4.09]
[1753976010694,0.75548107,3799.9,3799.8,4.2212]
[1753976010908,0.75547838,3799.9,3799.8,4.2212]
[1753976011430,0.5089,3799.9,3799.8,4.2212]
[1753976011996,0.04,3799.9,3799.8,4.2212]
[1753976012335,0.957,3799.9,3799.8,4.2212]
[1753976012919,0.5089,3799.9,3799.8,4.2212]
[1753976013149,0.04,3799.9,3799.8,4.2212]
[1753976013527,0.04,3799.9,3799.8,6.85291745]
[1753976013741,0.04,3799.9,3799.8,8.28479458]
[1753976013930,0.04,3799.9,3799.8,8.75099458]
[1753976014254,0.04,3799.9,3799.8,7.80139458]
[1753976014457,0.04,3799.9,3799.8,8.28479458]
[1753976014759,0.04,3799.9,3799.8,8.75099458]
[1753976014917,0.04,3799.9,3799.8,7.80139458]
[1753976015118,0.04,3799.9,3799.8,6.85291745]
[1753976015520,0.04,3799.9,3799.8,7.80251745]
[1753976018620,0.04,3799.9,3799.8,14.12451745]
[1753976022369,0.04,3799.9,3799.8,17.12451745]
[1753976022927,1e-08,3799.9,3799.8,17.12451745]
[1753976024942,1e-08,3800.3,3800.2,2.63144045]
[1753976025174,1e-08,3800.3,3800.2,9.1586254]
[1753976025480,1e-08,3800.3,3800.2,10.23124045]
[1753976026182,1e-08,3800.3,3800.2,10.78124045]
[1753976026348,1e-08,3800.3,3800.2,22.09063885]
[1753976026547,1e-08,3800.3,3800.2,13.23124045]
[1753976026753,0.1352,3802.2,3800.2,13.23124045]
[1753976026754,0.73283981,3802.1,3801.5,2.63053982]
[1753976027061,0.73283981,3802.1,3801.6,6.196]
[1753976027062,0.6583,3801.9,3801.6,6.196]
[1753976027254,0.4297,3801.8,3801.6,6.196]
[1753976027442,0.4871,3801.7,3801.6,6.196]
[1753976027644,0.9168,3801.7,3801.6,6.196]
[1753976028136,3.54720218,3801.7,3801.6,6.196]
[1753976029664,2.63040218,3801.7,3801.6,6.196]
[1753976029973,3.54720218,3801.7,3801.6,6.196]
[1753976032297,0.9168,3801.7,3801.6,6.196]
[1753976032486,0.9168,3801.7,3801.6,5.531]
[1753976032487,3.91909367,3801.7,3801.6,5.531]
[1753976032692,2.63058425,3801.5,3801.1,0.1312]
[1753976032894,3.54729765,3801.6,3801.2,4.835]
[1753976033067,0.50303551,3801.7,3801.2,4.835]
[1753976033068,0.1312,3801.7,3801.2,4.835]
[1753976033273,0.4871,3801.5,3801.4,0.1312]
[1753976033479,0.4871,3801.5,3801.4,4.9692]
[1753976033773,0.9168,3801.5,3801.4,4.9692]
[1753976033991,3.54734057,3801.5,3801.4,4.9692]
[1753976034167,4.16511742,3801.5,3801.4,4.838]
[1753976035973,0.55,3801.4,3799.5,0.4973]
[1753976036288,0.55,3801.1,3800.3,0.1312]
[1753976036477,2.63121234,3800.6,3800.4,4.087]
[1753976036670,0.9168,3800.5,3800.4,4.087]
[1753976037004,0.4871,3800.5,3800.4,4.087]
[1753976037177,3.54803273,3800.5,3800.4,4.087]
[1753976037383,0.9168,3800.5,3800.4,4.087]
[1753976037788,0.4871,3800.5,3800.4,4.087]
[1753976038770,0.9168,3800.5,3800.4,4.087]
[1753976038993,1.53470495,3800.5,3800.3,0.1312]
[1753976039202,0.94969127,3800.4,3799.9,6.32]
[1753976039404,2.63156306,3800.1,3800.0,4.087]
[1753976039611,0.9168,3800.1,3800.0,4.087]
[1753976040113,3.54830969,3800.1,3800.0,4.087]
[1753976040278,2.63157894,3800.0,3799.9,6.32]
[1753976040478,2.63191577,3799.6,3799.1,0.04]
[1753976040703,1.4668,3799.9,3799.2,4.087]
[1753976041008,0.9168,3799.8,3799.2,6.71908662]
[1753976041209,2.63194849,3799.5,3799.2,4.087]
[1753976041371,2.63187042,3799.6,3799.2,4.087]
[1753976041568,0.9168,3799.4,3799.2,4.087]
[1753976041779,0.4297,3799.7,3799.3,2.6320638]
[1753976042002,0.9168,3799.7,3799.4,4.087]
[1753976042212,0.4297,3799.7,3799.4,4.087]
[1753976042393,0.4871,3799.6,3799.4,4.087]
[1753976042599,0.4297,3799.6,3799.4,4.087]
[1753976042966,11.49041723,3800.9,3799.1,2.67218359]
[1753976042967,3.18213308,3799.2,3799.1,0.04]
[1753976043077,6.21503474,3799.2,3799.1,0.04]
[1753976043410,7.09893308,3799.2,3799.1,0.04]
[1753976043999,2.63261813,3798.5,3798.4,4.121]
[1753976044214,4.09941813,3798.5,3798.4,4.121]
[1753976044405,3.18273846,3798.4,3798.2,4.121]
[1753976044590,0.55,3798.3,3798.2,4.121]
[1753976044790,0.4297,3798.7,3798.2,4.121]
[1753976045187,3.54936821,3798.6,3797.9,3.13032552]
[1753976045487,2.63268744,3798.4,3798.3,4.121]
[1753976045702,4.77269162,3798.4,3798.3,4.121]
[1753976045890,3.18282607,3798.2,3798.1,4.161]
[1753976046086,7.09962607,3798.2,3798.1,4.161]
[1753976046406,7.09962607,3798.2,3798.1,0.04]
[1753976047209,1.0371,3798.2,3798.1,0.04]
[1753976047393,2.63268261,3798.5,3798.1,0.04]
[1753976047599,2.63256556,3798.6,3798.1,0.04]
[1753976047793,0.9168,3798.5,3798.1,0.04]
[1753976048177,0.4871,3798.5,3798.1,0.04]
[1753976048378,0.55,3799.1,3798.5,2.63257154]
[1753976048379,0.4871,3799.1,3798.5,2.63257154]
[1753976048605,0.4871,3799.1,3798.6,4.123]
[1753976048804,0.9168,3799.0,3798.6,4.123]
[1753976049117,0.132,3798.7,3798.6,4.123]
[1753976049614,0.6191,3798.7,3798.6,4.123]
[1753976049817,2.63267313,3798.5,3798.1,0.04]
[1753976050134,0.4871,3798.6,3798.1,0.04]
[1753976050418,2.63282607,3798.2,3798.1,0.04]
[1753976050645,3.18282607,3798.2,3798.1,0.04]
[1753976050834,4.09962607,3798.2,3798.1,0.04]
[1753976052641,4.13253639,3798.2,3798.1,0.04]
[1753976052819,12.95902447,3798.2,3798.1,0.04]
[1753976053020,17.93089979,3798.2,3798.1,0.04]
[1753976054127,9.07150139,3798.2,3798.1,0.04]
[1753976055064,2.63351943,3797.2,3797.1,4.166]
[1753976055364,4.10031943,3797.2,3797.1,4.166]
[1753976055535,4.77369495,3797.2,3797.1,4.166]
[1753976055740,0.67337552,3797.2,3797.1,4.166]
[1753976055949,3.30689495,3797.2,3797.1,4.166]
[1753976056125,4.76559495,3797.2,3797.1,0.04]
[1753976057624,7.76559495,3797.2,3797.1,0.04]
[1753976057867,2.63421316,3796.2,3796.1,0.04]
[1753976058166,0.52683426,3796.2,3796.1,0.04]
[1753976058364,2.63401351,3796.5,3796.1,0.04]
[1753976058365,2.63386625,3796.7,3796.1,0.5399]
[1753976058577,0.55,3796.8,3796.1,0.5399]
[1753976058778,2.63421316,3796.2,3796.1,0.04]
[1753976058972,0.55,3796.8,3796.1,0.04]
[1753976058973,2.63416012,3796.3,3796.1,0.04]
[1753976059128,0.4711,3796.2,3796.1,0.04]
[1753976059526,3.72300023,3796.2,3796.1,0.04]
[1753976059829,4.29260023,3796.2,3796.1,0.04]
[1753976060380,1.65838707,3796.2,3796.1,0.04]
[1753976060669,0.74968707,3796.2,3796.1,0.04]
[1753976062233,0.132,3796.2,3796.1,0.04]
[1753976064065,0.132,3796.2,3796.1,0.9803]
[1753976064360,2.63387679,3796.7,3796.1,0.9803]
[1753976064562,0.132,3796.4,3796.1,0.5399]
[1753976065263,2.63366999,3797.0,3796.1,0.5399]
[1753976065264,3.306901,3797.2,3796.3,2.63414377]
[1753976065570,0.132,3796.8,3796.4,5.0553]
[1753976065765,0.132,3796.8,3796.5,0.4999]
[1753976066133,3.0,3797.3,3796.7,2.63380653]
[1753976066332,0.132,3797.0,3796.8,0.4999]
[1753976066655,0.132,3797.0,3796.9,0.4999]
[1753976066964,6.324,3799.2,3796.9,4.6149]
[1753976067266,0.132,3797.6,3797.1,2.63358437]
[1753976067638,0.132,3797.6,3797.2,3.13340328]
[1753976068060,0.132,3797.6,3797.0,0.132]
[1753976068261,0.4711,3797.7,3796.9,4.115]
[1753976068474,0.132,3797.3,3796.9,4.115]
[1753976068670,2.66650259,3797.2,3796.9,4.115]
[1753976068961,0.132,3797.0,3796.8,4.115]
[1753976069154,2.63372751,3796.9,3796.8,4.115]
[1753976069359,2.63372751,3796.9,3796.3,0.132]
[1753976069360,0.55,3796.7,3796.3,0.132]
[1753976069579,0.16492419,3796.6,3796.1,0.04]
[1753976069762,2.76607438,3796.4,3796.3,4.115]
[1753976070075,3.23717438,3796.4,3796.3,4.115]
[1753976070683,4.85564651,3796.4,3796.3,4.115]
[1753976071184,4.85564651,3796.4,3796.1,0.04]
[1753976071185,3.18421316,3796.2,3796.1,0.04]
[1753976071494,6.34914082,3796.2,3796.1,0.04]
[1753976071642,6.31621316,3796.2,3796.1,0.04]
[1753976071845,7.22491316,3796.2,3796.1,0.04]
[1753976072039,8.84409913,3796.2,3796.1,0.04]
[1753976073469,8.40649913,3796.2,3796.1,0.04]
[1753976074044,8.84409913,3796.2,3796.1,0.04]
[1753976074284,9.08920284,3796.2,3796.1,0.04]
[1753976074446,9.08915172,3796.2,3796.1,0.04]
[1753976074841,9.08915172,3796.2,3796.1,1e-08]
[1753976075952,13.20315172,3796.2,3796.1,1e-08]
[1753976076347,9.08915172,3796.2,3796.1,1e-08]
[1753976076548,13.20315172,3796.2,3796.1,1e-08]
[1753976077477,12.95809913,3796.2,3796.1,1e-08]
[1753976077962,13.20309888,3796.2,3796.1,1e-08]
[1753976078158,9.08909888,3796.2,3796.1,1e-08]
[1753976078390,13.20109888,3796.2,3796.1,1e-08]
[1753976078947,13.20109888,3796.2,3795.1,0.04]
[1753976078948,2.63490725,3795.2,3795.1,0.04]
[1753976079147,10.46184359,3795.2,3795.1,1e-08]
[1753976079396,11.33760725,3795.2,3795.1,1e-08]
[1753976079589,6.56194051,3795.2,3795.1,1e-08]
[1753976079788,6.18490725,3795.2,3795.1,0.49990001]
[1753976079995,7.21459798,3795.2,3795.1,0.49990001]
[1753976081045,7.21459798,3795.2,3795.1,1e-08]
[1753976081488,7.35807399,3795.2,3795.1,1e-08]
[1753976081962,7.82917399,3795.2,3795.1,1e-08]
[1753976082165,8.26677399,3795.2,3795.1,1e-08]
[1753976082491,12.37777399,3795.2,3795.1,1e-08]
[1753976083391,21.23717239,3795.2,3795.1,1e-08]
[1753976084950,2.6356017,3794.2,3794.1,0.04]
[1753976085267,6.1856017,3794.2,3794.1,0.04]
[1753976085657,7.0943017,3794.2,3794.1,0.04]
[1753976086254,17.78211249,3794.2,3794.1,1e-08]
[1753976086477,16.19911249,3794.2,3794.1,1e-08]
[1753976086656,18.78499615,3794.2,3794.1,1e-08]
[1753976087304,18.23499615,3794.2,3794.1,1e-08]
[1753976087603,18.23499615,3794.2,3793.1,0.04]
[1753976087604,3.18629653,3793.2,3793.1,0.04]
[1753976087749,10.32725023,3793.2,3793.1,0.04]
[1753976087952,10.29429653,3793.2,3793.1,0.04]
[1753976088185,11.63612742,3793.2,3793.1,0.04]
[1753976088393,7.52812742,3793.2,3793.1,0.04]
[1753976088596,11.63812742,3793.2,3793.1,0.5305]
[1753976089596,4.109,3793.6,3793.1,0.968]
[1753976089757,0.132,3793.2,3793.1,0.04]
[1753976090507,0.132,3793.2,3793.1,0.968]
[1753976090656,9.72036672,3794.3,3793.1,0.968]
[1753976090657,0.132,3793.5,3793.1,0.968]
[1753976090859,0.132,3793.5,3793.2,0.928]
[1753976091157,2.63620694,3793.4,3793.2,0.928]
[1753976091351,0.132,3793.5,3793.1,0.04]
[1753976091352,2.768095,3793.5,3793.3,0.4905]
[1753976091581,2.768095,3793.5,3793.4,0.4905]
[1753976092113,0.132,3793.5,3793.2,0.4905]
[1753976092296,0.132,3793.5,3793.4,0.4905]
[1753976092484,2.63611371,3793.5,3793.4,0.4905]
[1753976092691,2.76811371,3793.5,3793.4,0.4905]
[1753976093181,0.132,3793.5,3793.4,0.4905]
[1753976093380,0.132,3794.0,3793.7,2.63588076]
[1753976093712,0.132,3794.0,3793.8,0.928]
[1753976094091,0.132,3794.0,3793.9,3.56381011]
[1753976094573,3.0,3794.7,3793.9,3.56381011]
[1753976094770,2.63553725,3794.3,3793.4,2.63609213]
[1753976094973,0.132,3793.9,3793.7,0.4905]
[1753976095229,0.132,3794.1,3793.8,0.4375]
[1753976095575,0.132,3794.1,3793.9,0.928]
[1753976095707,5.34582812,3794.7,3793.2,4.11629799]
[1753976095708,0.132,3794.5,3794.0,1.06]
[1753976095921,4.108,3795.4,3794.1,0.928]
[1753976096247,4.108,3795.4,3794.0,0.36959256]
[1753976096248,0.132,3795.1,3794.6,0.132]
[1753976096521,0.132,3795.1,3794.7,0.928]
[1753976096743,0.132,3795.1,3794.8,0.928]
[1753976096886,0.172,3795.9,3795.8,2.63449075]
[1753976097086,0.28499655,3795.9,3795.8,8.2023976]
[1753976097281,0.04,3795.9,3795.8,8.2023976]
[1753976098825,0.04,3795.9,3795.8,5.043]
[1753976099199,0.04,3795.9,3795.8,7.67749075]
[1753976099419,0.53074986,3795.9,3795.8,5.043]
[1753976099621,0.53074986,3795.9,3795.8,7.67749075]
[1753976099806,0.53074986,3795.9,3795.8,5.043]
[1753976100328,2.63449075,3795.8,3795.1,6.332]
[1753976100490,0.52368186,3795.7,3795.4,4.113]
[1753976100693,0.49074986,3795.6,3795.5,0.4905]
[1753976100888,0.49074986,3795.6,3795.5,3.56269898]
[1753976100889,0.24515459,3795.6,3795.5,3.56269898]
[1753976101120,0.04,3795.9,3795.8,2.63449075]
[1753976101303,0.28568478,3795.9,3795.8,2.63449075]
[1753976101514,0.28568478,3795.9,3795.8,4.18220269]
[1753976101831,0.04,3795.9,3795.8,4.18220269]
[1753976102324,1e-08,3795.9,3795.8,7.18220269]
[1753976104981,1e-08,3795.9,3795.8,0.4905]
[1753976105268,0.24580398,3795.9,3795.8,3.12499075]
[1753976105574,0.24598347,3795.9,3795.8,3.12499075]
[1753976105856,0.24598347,3795.9,3795.5,0.4375]
[1753976106058,0.24598346,3795.8,3795.6,4.122]
[1753976106243,0.24602347,3795.7,3795.0,0.4375]
[1753976106435,0.24602347,3795.6,3795.2,4.121]
[1753976106618,0.24602347,3795.5,3795.2,4.121]
[1753976106816,2.63457409,3795.7,3795.1,6.332]
[1753976106817,0.24602347,3795.4,3795.3,4.122]
[1753976107452,0.24602347,3795.4,3795.1,6.464]
[1753976107651,0.24602347,3795.3,3795.2,4.122]
[1753976108362,1.20266991,3795.3,3795.2,4.122]
[1753976108666,1.33742347,3795.3,3795.2,4.122]
[1753976108819,2.63491705,3795.2,3794.4,3.4905]
[1753976109020,0.24602347,3795.1,3794.7,0.132]
[1753976109244,0.73382347,3795.0,3794.7,0.132]
[1753976109470,2.63518498,3794.8,3794.5,4.12]
[1753976109626,0.24602347,3794.7,3794.5,4.252]
[1753976109823,0.24615967,3794.6,3794.5,4.252]
[1753976110424,2.88148355,3794.6,3794.5,4.252]
[1753976110636,0.24615967,3794.6,3794.5,4.252]
[1753976110837,0.4878,3794.9,3794.5,0.132]
[1753976111190,0.4878,3794.9,3794.0,0.86009256]
[1753976111191,0.86598353,3794.8,3794.6,4.119]
[1753976111400,3.25500892,3794.8,3794.7,4.119]
[1753976111543,3.50121928,3794.8,3794.7,4.119]
[1753976112388,1.33761036,3794.8,3794.3,0.132]
[1753976112541,2.63532388,3794.6,3794.4,4.117]
[1753976112740,2.63534047,3794.6,3794.4,4.117]
[1753976112941,2.63539333,3794.5,3794.2,0.132]
[1753976113176,2.63539333,3794.5,3793.6,0.4905]
[1753976113177,3.12321359,3794.5,3794.3,4.117]
[1753976113489,0.6198,3794.5,3794.3,4.117]
[1753976113643,3.25521646,3794.5,3794.3,4.117]
[1753976113841,2.63546278,3794.4,3794.3,4.117]
[1753976114049,0.6198,3794.5,3794.3,4.117]
[1753976114571,0.132,3794.5,3794.3,4.117]
[1753976114767,0.132,3794.5,3794.3,7.24299133]
[1753976115321,0.4878,3794.4,3794.3,4.117]
[1753976115632,0.4878,3794.4,3794.3,4.116]
[1753976115633,3.59486278,3794.4,3794.3,4.116]
[1753976115786,4.23108832,3794.4,3794.3,4.116]
[1753976115967,1.59562554,3794.4,3794.3,4.116]
[1753976116309,1.59562554,3794.4,3793.7,6.461]
[1753976116516,0.132,3794.0,3793.8,4.115]
[1753976116809,0.132,3794.0,3793.5,0.6246]
[1753976117009,0.132,3794.0,3793.7,2.63594907]
[1753976117181,0.132,3794.0,3793.7,3.12854907]
[1753976117381,0.132,3794.0,3793.8,4.121]
[1753976118068,0.4918,3794.6,3793.8,4.6136]
[1753976118268,0.55,3794.5,3793.9,2.63581011]
[1753976118463,0.55,3794.5,3794.1,2.6356665]
[1753976118814,0.55,3794.5,3794.2,4.12]
[1753976119011,0.132,3794.3,3794.2,4.12]
[1753976124611,0.132,3794.3,3794.2,6.7556017]
[1753976124911,0.132,3794.3,3794.2,4.6126]
[1753976125067,0.132,3794.3,3794.2,7.2482017]
[1753976125421,0.55,3794.8,3794.2,7.2482017]
[1753976125422,0.132,3795.4,3794.9,2.63511554]
[1753976125584,0.132,3795.4,3795.1,2.63491254]
[1753976125904,0.132,3795.4,3795.3,2.63483782]
[1753976126103,0.132,3795.4,3795.3,4.225]
[1753976127525,0.132,3795.4,3795.3,6.85983782]
[1753976127691,0.132,3795.4,3795.3,4.225]
[1753976128376,0.6238,3795.4,3795.3,4.225]
[1753976128576,0.132,3795.4,3795.3,4.225]
[1753976128806,0.132,3795.4,3795.3,6.85983782]
[1753976129166,0.132,3795.4,3795.3,4.225]
[1753976129715,0.132,3795.4,3795.3,6.85983782]
[1753976130214,0.13200001,3795.9,3795.4,2.63472346]
[1753976130390,0.13200001,3795.9,3795.4,3.12732346]
[1753976130586,0.13200001,3795.9,3795.4,0.4926]
[1753976130795,0.13200001,3795.9,3795.8,2.63449075]
[1753976131128,1e-08,3795.9,3795.8,7.82679075]
[1753976131424,1e-08,3795.9,3795.8,7.95879075]
[1753976132022,1e-08,3795.9,3795.8,6.99949075]